Cogmind - Beta 10.2 @@@ ROGUE MODE // 2021.12.08 @ 09:25:12 Player: Phaethon Result: Destroyed by KT-5VK(z) with Zionite Laser-S Performance ------------- Evolutions (3) 1500 Regions Visited (10) 2000 Robots Destroyed (161) 805 Value Destroyed (4199) 4199 Prototype IDs (22) 440 Alien Tech Used (0) 0 Bonus (1743) 1743 TOTAL SCORE: 10687 Bonus ------- High Alert Combat Kills 511 Follower Combat Kills 261 Destroyed Z-Imprinter 1000 Friendly Fire -29 Cogmind --------- Core Integrity 0/700 Matter 192/300 Energy 14/100 System Corruption 0% Temperature Cool (9) Movement Hovering (230) Ox3 Location -7/Deep Caves Parts ------- > --- POWER (1) -------- (None) > --- PROPULSION (4) --- Cooled Airjet > --- UTILITY (6) ------ Improved Cooling System Large Storage Unit Large Storage Unit Advanced Targeting Computer Experimental Armor Integrity Analyzer Improved Medium Armor Plating > --- WEAPON (2) ------- Advanced Beam Rifle Improved Assault Rifle > --- INVENTORY (16) --- Cooled Ion Engine Cooled Airjet Cooled Airjet Advanced Weight Redist. System Mobile Refinery Mk. CCLXVII Hacking Drone Bay (1/1) Arc Projector Improved Grenade Launcher Self-destruct Interrupter (50) Peak State ------------ > --- POWER ------------ Light Nuclear Core > --- PROPULSION ------- Aerolev Unit Cooled Airjet Cooled Airjet Cooled Airjet > --- UTILITY ---------- Improved Cooling System Large Storage Unit Large Storage Unit Advanced Targeting Computer Experimental Armor Integrity Analyzer Improved Light Armor Plating > --- WEAPON ----------- Advanced Beam Rifle Shock Maul > --- INVENTORY -------- Cooled Ion Engine Cooled Airjet Cooled Airjet Makeshift Sensor Array Hardened Medium Armor Plating Improved Medium Armor Plating Advanced Hacking Suite Mobile Refinery Mk. CCLXVII Hacking Drone Bay Arc Projector Advanced Beam Rifle Improved Assault Rifle Gauss Rifle Heavy Battle Rifle Improved Grenade Launcher Self-destruct Interrupter [Rating: 61] Favorites ----------- Power Light Angular Momentum Engine Engine Light Angular Momentum Engine Power Core Light Nuclear Core Propulsion Armored Treads Treads Armored Treads Leg Aluminum Leg Wheel Wheel Hover Unit Cooled Airjet Utility Large Storage Unit Device Advanced Heat Sink Storage Large Storage Unit Processor Advanced Targeting Computer Hackware Hacking Suite Protection Light Armor Plating Weapon Improved Assault Rifle Energy Gun Advanced Beam Rifle Energy Cannon Advanced Beam Cannon Ballistic Gun Improved Assault Rifle Launcher Improved Grenade Launcher Impact Weapon Shock Maul Build | -11 -10 -10 -9 -9 -8 -7 -7 -7 -7 -7 ------- Run | Scr Mat Min Mat Sto Mat Fac Low Low Zio Dee Slots Evolved 6 | . . . 2 . 2 2 . . . . Power . | . . . . . . . . . . . Propulsion 2 | . . . 1 . . 1 . . . . Utility 4 | . . . 1 . 2 1 . . . . Weapon . | . . . . . . . . . . . Parts Attached 164 | 1 15 5 25 22 52 27 . 1 9 7 Power 15 | . 3 . 2 3 4 3 . . . . Engine 14 | . 3 . 2 3 4 2 . . . . Core 1 | . . . . . . 1 . . . . Reactor . | . . . . . . . . . . . Propulsion 42 | . 6 . 9 5 11 11 . . . . Treads 21 | . 3 . 6 2 5 5 . . . . Leg . | . . . . . . . . . . . Wheel 15 | . 3 . 3 3 5 1 . . . . Hover 6 | . . . . . 1 5 . . . . Flight . | . . . . . . . . . . . Utility 53 | 1 2 . 5 7 21 6 . 1 7 3 Device 13 | . . . . . 8 1 . 1 2 1 Storage 8 | 1 2 . 1 . 3 . . . 1 . Processor 5 | . . . . . 2 . . . 3 . Hackware 1 | . . . . . . 1 . . . . Protection 26 | . . . 4 7 8 4 . . 1 2 Artifact . | . . . . . . . . . . . Weapon 54 | . 4 5 9 7 16 7 . . 2 4 Energy Gun 19 | . 4 3 1 5 4 1 . . . 1 Energy Cannon 5 | . . . 2 . 1 2 . . . . Ballistic Gun 20 | . . 1 6 . 7 2 . . 1 3 Ballistic Cannon . | . . . . . . . . . . . Launcher 6 | . . 1 . . 3 2 . . . . Special Weapon . | . . . . . . . . . . . Impact Weapon 4 | . . . . 2 1 . . . 1 . Slashing Weapon . | . . . . . . . . . . . Piercing Weapon . | . . . . . . . . . . . Special Melee Weapon . | . . . . . . . . . . . Unidentified Prototypes 15 | . . . 3 1 5 1 . . 5 . Parts Lost 27 | . 1 . 3 1 9 3 . . . 10 Power 3 | . . . 1 . . 1 . . . 1 Propulsion 7 | . . . 2 1 . 1 . . . 3 Utility 8 | . . . . . 5 1 . . . 2 Weapon 9 | . 1 . . . 4 . . . . 4 Highest Loss Streak 10 | . 1 . 1 1 2 2 . . . 10 Average Slot Usage (%) 97 | . 100 100 99 99 97 91 100 100 94 94 Engine 8 | . 14 14 10 11 9 6 . . . . Core 1 | . . . . . . . 7 7 7 6 Treads 13 | . 13 14 20 22 16 11 . . . . Wheel 9 | . 13 14 12 10 9 9 . . . . Hover 5 | . . . . . . 1 30 30 30 26 Device 4 | . . . . . 10 7 7 11 5 2 Storage 20 | . 28 28 22 22 18 15 15 15 19 20 Processor 4 | . . . . . 5 7 7 7 12 15 Hackware 1 | . . . . . . 6 7 2 . . Protection 7 | . . . 10 10 10 6 7 7 4 6 Energy Gun 8 | . 24 16 1 15 5 . 7 7 7 6 Energy Cannon 1 | . . . . . 1 6 . . . . Ballistic Gun 8 | . 3 11 20 5 9 6 . . 2 7 Naked Turns . | . . . . . . . . . . . Heaviest Build 77 | 14 41 43 49 50 66 58 50 50 77 77 Greatest Support 60 | 20 20 10 60 40 44 50 50 59 50 50 Greatest Overweight (x) 18 | . 4 4 4 4 6 18 . . 1 1 Average Overweight (x) 2 | . 2 3 3 3 3 1 . . . . Largest Inventory Capacity 24 | 8 16 16 16 16 16 16 16 16 24 24 Average Capacity 16 | 6 15 16 16 16 16 16 16 16 20 21 Most Carried 24 | 7 16 16 16 16 16 16 15 16 24 24 Average Carried 16 | 6 13 15 15 15 15 15 15 15 19 20 Final Capacity 24 | 8 16 16 16 16 16 16 16 16 24 16 Final Carried 24 | 7 16 16 16 16 16 15 15 16 24 9 Class Distribution -------------------- 89% | Mutant 7% | Hauler-Mutant 3% | Scavenger-Mutant Dominant Class ---------------- Mutant | -10/Materials Mutant | -10/Mines Mutant | -9/Materials Mutant | -9/Storage Mutant | -8/Materials Mutant | -7/Factory Mutant | -7/Lower Caves Mutant | -7/Lower Caves Hauler-Mutant | -7/Zion Hauler-Mutant | -7/Deep Caves Resources | -11 -10 -10 -9 -9 -8 -7 -7 -7 -7 -7 ----------- Run | Scr Mat Min Mat Sto Mat Fac Low Low Zio Dee Matter Collected 3579 | 222 354 72 957 334 1025 451 46 10 90 18 Remotely . | . . . . . . . . . . . Salvage Created 6438 | 51 509 27 1470 1172 2178 819 29 . . 183 Parts 361 | 3 37 4 81 80 107 34 1 . . 14 Haulers Intercepted 18 | . 2 . 6 3 5 2 . . . . Recyclers Shooed 2 | . . . . . 2 . . . . . Parts Field Recycled . | . . . . . . . . . . . Retrieved Matter . | . . . . . . . . . . . Parts Self-Destructed 1 | . . . . . . . 1 . . . Prevented . | . . . . . . . . . . . Kills | -11 -10 -10 -9 -9 -8 -7 -7 -7 -7 -7 ------- Run | Scr Mat Min Mat Sto Mat Fac Low Low Zio Dee Combat Hostiles Destroyed 114 | . 11 3 25 21 36 12 1 . . 5 Guns 90 | . 9 1 25 19 26 5 . . . 5 Cannons 10 | . . . . . 4 6 . . . . AOE 12 | . 2 2 . 1 5 1 1 . . . Classes Destroyed 15 | 1 6 . 3 1 1 1 . . . 2 Worker 12 | . 3 . 1 3 4 1 . . . . Builder 2 | . 2 . . . . . . . . . Hauler 18 | . 2 . 6 3 5 2 . . . . Recycler 5 | 1 . . 1 . 2 1 . . . . Operator 3 | . . . . 2 1 . . . . . Watcher 10 | . 2 . 3 2 2 1 . . . . Swarmer 30 | . 9 3 3 6 7 2 . . . . Grunt 42 | . 2 . 13 5 16 6 . . . . Brawler 3 | . . . 1 . 2 . . . . . Duelist 3 | . . . 2 . . 1 . . . . Sentry 28 | . . . 6 10 10 2 . . . . Hunter 1 | . . . . . 1 . . . . . Programmer 2 | . . . . . . 1 1 . . . Z-Light 1 | . . . . . . . . . . 1 Assembled 3 | . . . . . . . . . . 3 Best Kill Streak 5 | 1 5 2 5 4 5 4 1 . . 3 Combat Bots Only 5 | . 3 2 5 4 4 4 1 . . 3 Max Kills in Single Turn 4 | 1 4 1 2 2 3 1 1 . . 2 Gunslinging 1 | . . . 1 . . . . . . 1 Exploded 3 | . 2 1 . 1 3 1 1 . . . Melee . | . . . . . . . . . . . Uniques/NPCs Destroyed 1 | . . . . . . . . . . 1 Z-Imprinter (-7/Deep Caves) Combat | -11 -10 -10 -9 -9 -8 -7 -7 -7 -7 -7 -------- Run | Scr Mat Min Mat Sto Mat Fac Low Low Zio Dee Damage Taken 8533 | . 391 227 1578 940 1856 1181 . . . 2360 Core 1270 | . 88 55 195 97 118 151 . . . 566 Absorbed by Shields . | . . . . . . . . . . . Core Remaining (%) 61 | 100 . 42 . 27 78 . . . . . Volleys Fired 445 | 4 36 12 107 57 140 59 2 . 1 27 Largest 2 | 2 2 2 2 2 2 2 2 . 1 2 Hottest 117 | 60 80 80 91 90 117 91 97 . 61 84 Shots Fired 871 | 8 72 23 208 112 275 118 4 . 1 50 Gun 791 | 8 72 21 206 112 260 59 2 . 1 50 Cannon 71 | . . . 2 . 13 56 . . . . Launcher 9 | . . 2 . . 2 3 2 . . . Special . | . . . . . . . . . . . Kinetic 511 | 4 3 8 193 38 172 59 . . . 34 Thermal 201 | 4 3 7 15 . 97 56 2 . 1 16 Explosive 9 | . . 2 . . 2 3 2 . . . Electromagnetic 150 | . 66 6 . 74 4 . . . . . Robot Hit Streak 36 | 2 7 8 20 14 36 15 3 . . 8 Robot Miss Streak 7 | 3 3 5 7 5 2 2 1 . . 2 Penetration Max . | . . . . . . . . . . . Secondary Targets 11 | . 2 . 4 1 2 . . . . 2 Max Gunslinging Chain 1 | . 1 . 1 1 1 . . . . 1 Shots Hit Robots 651 | 3 40 12 162 86 226 85 3 . . 34 Core Hits 282 | 2 22 5 70 49 82 34 2 . . 16 Critical Hits 26 | . . . 5 1 6 14 . . . . Critical Kills 6 | . . . 2 1 . 3 . . . . Critical Parts Destroyed 20 | . . . 3 . 6 11 . . . . Melee Attacks 11 | . . . . 3 2 . . . 6 . Impact 11 | . . . . 3 2 . . . 6 . Slashing . | . . . . . . . . . . . Piercing . | . . . . . . . . . . . Sneak Attacks . | . . . . . . . . . . . Combat Hostiles . | . . . . . . . . . . . Follow-up Attacks . | . . . . . . . . . . . Damage Inflicted 11910 | 36 708 233 2613 1587 4361 1711 88 . . 573 Guns 9564 | 36 517 148 2571 1425 3609 660 25 . . 573 Cannons 1237 | . . . 42 . 253 942 . . . . Explosions 1109 | . 191 85 . 162 499 109 63 . . . Melee . | . . . . . . . . . . . Ramming . | . . . . . . . . . . . Kinetic 6051 | 14 25 46 2434 432 2067 660 . . . 373 Thermal 3379 | 22 201 44 179 27 1739 942 25 . . 200 Explosive 852 | . . 85 . 135 460 109 63 . . . Electromagnetic 1628 | . 482 58 . 993 95 . . . . . Impact . | . . . . . . . . . . . Slashing . | . . . . . . . . . . . Piercing . | . . . . . . . . . . . Highest Corruption 6 | . 2 2 . 6 . 1 1 1 2 . Average Corruption 1 | . 2 2 . 4 . 1 1 1 1 . Corruption Purged . | . . . . . . . . . . . Effects 11 | . 3 5 . 2 . . . 1 . . Message Errors 5 | . 2 2 . 1 . . . . . . Heat Flow Errors 1 | . . 1 . . . . . . . . Energy Discharges 3 | . 1 1 . 1 . . . . . . Data Loss (minor) 2 | . . 1 . . . . . 1 . . Overload Shots . | . . . . . . . . . . . Overflow Damage 86 | . . . . . 60 26 . . . . Projectiles 20 | . . . . . . 20 . . . . Explosions 66 | . . . . . 60 6 . . . . Melee . | . . . . . . . . . . . Knockbacks . | . . . . . . . . . . . Impact . | . . . . . . . . . . . Kinetic . | . . . . . . . . . . . Secondary . | . . . . . . . . . . . Self-Inflicted Damage 340 | . 55 22 . 197 66 . . . . . Shots 8 | . 2 1 . 3 2 . . . . . Rammed . | . . . . . . . . . . . Targets Rammed . | . . . . . . . . . . . Kicked . | . . . . . . . . . . . Crushed . | . . . . . . . . . . . Highest Temperature 466 | 20 174 255 466 258 19 . . . 229 172 Average Temperature 58 | 20 45 52 77 52 6 . . . 97 81 Received Heat Transfer 2179 | . 12 9 459 147 576 273 . . . 703 Effects 2 | . . . 2 . . . . . . . Shutdowns 1 | . . . 1 . . . . . . . Energy Bleed 1 | . . . 1 . . . . . . . Siege Activations . | . . . . . . . . . . . Robots Corrupted 2 | . . . . 2 . . . . . . Combat Hostiles 1 | . . . . 1 . . . . . . Parts Fried 11 | . 4 . . 6 1 . . . . . Impact Corruptions . | . . . . . . . . . . . Robots Melted 1 | . . . . . 1 . . . . . Combat Hostiles 1 | . . . . . 1 . . . . . Parts Melted 6 | . . . . . 4 1 1 . . . Heat Transferred 5766 | 50 225 111 407 50 3121 1591 37 . . 174 Parts Sabotaged . | . . . . . . . . . . . Parts Stolen . | . . . . . . . . . . . Parts Stripped . | . . . . . . . . . . . Power Chain Reactions 5 | . 3 . . 1 1 . . . . . Missiles Intercepted . | . . . . . . . . . . . Alert | -11 -10 -10 -9 -9 -8 -7 -7 -7 -7 -7 ------- Run | Scr Mat Min Mat Sto Mat Fac Low Low Zio Dee Peak Influence 820 | 5 224 298 570 544 820 377 . . . . Initial 320 | . 3 38 37 78 229 320 . . . . Average 324 | 3 115 160 359 388 509 217 . . . . Maximum Alert Level 3 | . 1 1 2 2 3 1 . . . . Low Security (%) 34 | 100 96 64 19 9 . 53 . . . . Level 1 34 | . 3 35 39 40 35 46 . . . . Level 2 26 | . . . 41 50 44 . . . . . Level 3 5 | . . . . . 19 . . . . . Level 4 . | . . . . . . . . . . . Level 5 . | . . . . . . . . . . . High Security . | . . . . . . . . . . . Max Security . | . . . . . . . . . . . Squads Dispatched 14 | . 1 . 2 2 3 6 . . . . Investigation 3 | . . . 1 1 1 . . . . . Extermination 1 | . . . . . . 1 . . . . Reinforcement 5 | . 1 . 1 1 . 2 . . . . Assault 1 | . . . . . 1 . . . . . Garrison 4 | . . . . . 1 3 . . . . Intercept . | . . . . . . . . . . . Construction Impeded . | . . . . . . . . . . . Haulers Reinforced 1 | . . . . . . 1 . . . . Stealth | -11 -10 -10 -9 -9 -8 -7 -7 -7 -7 -7 --------- Run | Scr Mat Min Mat Sto Mat Fac Low Low Zio Dee Distress Signals 8 | . 1 . 1 2 3 1 . . . . Communications Jammed . | . . . . . . . . . . . Distress Signals . | . . . . . . . . . . . Times Spotted 185 | . 19 10 46 29 56 18 1 . . 6 Peak Tracking Total 6 | . 4 3 4 6 5 4 1 . . 3 Tactical Retreats 11 | . 1 2 4 2 2 . . . . . Traps | -11 -10 -10 -9 -9 -8 -7 -7 -7 -7 -7 ------- Run | Scr Mat Min Mat Sto Mat Fac Low Low Zio Dee Traps Triggered 11 | . 1 . 1 6 1 2 . . . . Indirectly . | . . . . . . . . . . . Trap Hack Attempts . | . . . . . . . . . . . Triggered . | . . . . . . . . . . . Disarmed . | . . . . . . . . . . . Reprogrammed 6 | . . . . . . 6 . . . . Reused . | . . . . . . . . . . . Traps Extracted . | . . . . . . . . . . . Installed . | . . . . . . . . . . . Triggered . | . . . . . . . . . . . Machines | -11 -10 -10 -9 -9 -8 -7 -7 -7 -7 -7 ---------- Run | Scr Mat Min Mat Sto Mat Fac Low Low Zio Dee Machines Disabled 6 | . 1 . . 3 1 1 . . . . Max in Single Turn 2 | . 1 . . 2 1 1 . . . . Garrison Access 1 | . . . . . 1 . . . . . Machines Sabotaged . | . . . . . . . . . . . Garrisons Compromised . | . . . . . . . . . . . Overloaded Fab Kills . | . . . . . . . . . . . Fab Network Shutdowns . | . . . . . . . . . . . Hacking | -11 -10 -10 -9 -9 -8 -7 -7 -7 -7 -7 --------- Run | Scr Mat Min Mat Sto Mat Fac Low Low Zio Dee Machines Accessed 55 | . 9 . 10 11 16 8 . 1 . . Terminals 43 | . 7 . 9 9 12 6 . . . . Fabricators . | . . . . . . . . . . . Repair Stations . | . . . . . . . . . . . Recycling Units 6 | . 2 . 1 2 1 . . . . . Scanalyzers 4 | . . . . . 2 2 . . . . Garrison Access 1 | . . . . . 1 . . . . . Total Hacks 178 | . 31 . 32 33 52 29 . 1 . . Successful 117 | . 15 . 21 21 34 25 . 1 . . Failed 60 | . 16 . 11 12 17 4 . . . . Catastrophic 4 | . 1 . 1 . 1 1 . . . . Database Lockouts 1 | . . . . . 1 . . . . . Manual 107 | . 26 . 16 20 31 14 . . . . Terminals 149 | . 27 . 29 28 45 20 . . . . Fabricators . | . . . . . . . . . . . Repair Stations . | . . . . . . . . . . . Recycling Units 14 | . 4 . 3 5 2 . . . . . Scanalyzers 13 | . . . . . 4 9 . . . . Garrison Access 1 | . . . . . 1 . . . . . Terminal Hacks 51 | . 9 . 12 8 12 9 . 1 . . Part Schematic 1 | . 1 . . . . . . . . . Robot Analysis 11 | . 5 . 2 1 3 . . . . . Prototype ID Bank 5 | . 1 . . 1 2 1 . . . . Open Door 2 | . . . . 1 . . . 1 . . Branch Access Points 3 | . . . 1 . 1 1 . . . . Terminal Index 4 | . . . 1 1 1 1 . . . . Alert Level 4 | . . . 1 1 1 1 . . . . Unreport Threat 5 | . . . 3 . 1 1 . . . . Locate Traps 5 | . 1 . 1 . 2 1 . . . . Reprogram Traps 1 | . . . . . . 1 . . . . Hauler Manifests 4 | . . . 1 1 1 1 . . . . Zone Layout 6 | . 1 . 2 2 . 1 . . . . Fabricator Hacks . | . . . . . . . . . . . Repair Station Hacks . | . . . . . . . . . . . Recycling Unit Hacks 4 | . . . 1 2 1 . . . . . Report Inventory 3 | . . . . 2 1 . . . . . Retrieve Components 1 | . . . 1 . . . . . . . Scanalyzer 13 | . . . . . 4 9 . . . . Insert Component 6 | . . . . . 2 4 . . . . Analyze 7 | . . . . . 2 5 . . . . Garrison Access Hacks 1 | . . . . . 1 . . . . . Seal Access 1 | . . . . . 1 . . . . . Unauthorized Hacks 48 | . 6 . 8 11 16 7 . . . . Terminals 43 | . 5 . 7 9 15 7 . . . . Track 9 | . 1 . 1 2 4 1 . . . . Assimilate 3 | . . . 1 . 2 . . . . . Botnet 27 | . 3 . 5 6 8 5 . . . . Operators 4 | . 1 . . 1 1 1 . . . . Fabricators . | . . . . . . . . . . . Repair Stations . | . . . . . . . . . . . Recycling Units 5 | . 1 . 1 2 1 . . . . . Reject 1 | . . . 1 . . . . . . . Recyclers 1 | . 1 . . . . . . . . . Mask 3 | . . . . 2 1 . . . . . Scanalyzers . | . . . . . . . . . . . Garrison Access . | . . . . . . . . . . . Data Cores Recovered 2 | . . . . 1 1 . . . . . Used 2 | . . . . 1 1 . . . . . Hacking Detections 51 | . 9 . 10 11 15 6 . . . . Full Trace Events 2 | . . . 1 1 . . . . . . Feedback Events . | . . . . . . . . . . . Feedback Blocked . | . . . . . . . . . . . Robot Schematics Acquired . | . . . . . . . . . . . Robots Built . | . . . . . . . . . . . Matter . | . . . . . . . . . . . Time . | . . . . . . . . . . . Total Robot Build Rating . | . . . . . . . . . . . Part Schematics Acquired 7 | . 1 . . . 2 4 . . . . Parts Built . | . . . . . . . . . . . Matter . | . . . . . . . . . . . Time . | . . . . . . . . . . . Total Part Build Rating . | . . . . . . . . . . . Parts Repaired . | . . . . . . . . . . . Time . | . . . . . . . . . . . Parts Recycled . | . . . . . . . . . . . Recycled Matter . | . . . . . . . . . . . Retrieved Matter . | . . . . . . . . . . . Retrieved Components 10 | . . . 10 . . . . . . . Parts Scanalyzed 6 | . . . . . 2 4 . . . . Part Schematics Acquired 6 | . . . . . 2 4 . . . . Parts Damaged . | . . . . . . . . . . . Bothacking | -11 -10 -10 -9 -9 -8 -7 -7 -7 -7 -7 ------------ Run | Scr Mat Min Mat Sto Mat Fac Low Low Zio Dee Used RIF Installer . | . . . . . . . . . . . Robots Hacked . | . . . . . . . . . . . Non-combat . | . . . . . . . . . . . Combat . | . . . . . . . . . . . Robot Hacks Applied . | . . . . . . . . . . . Relay Couplers Released . | . . . . . . . . . . . Robots Rewired . | . . . . . . . . . . . Allies Hacked . | . . . . . . . . . . . Hacks Repelled . | . . . . . . . . . . . Allies | -11 -10 -10 -9 -9 -8 -7 -7 -7 -7 -7 -------- Run | Scr Mat Min Mat Sto Mat Fac Low Low Zio Dee Total Allies 4 | . . 2 . . 2 . . . . . Largest Group 2 | . . 2 2 . 1 . . . . . Highest-Rated Group 45 | . . 45 45 . 10 . . . . . Highest-Rated Ally 31 | . . 31 31 . 10 . . . . . Total Orders . | . . . . . . . . . . . Ally Attacks 29 | . . 8 21 . . . . . . . Total Damage 501 | . . 127 374 . . . . . . . Kills 12 | . . 5 7 . . . . . . . Allies Corrupted . | . . . . . . . . . . . Allies Melted . | . . . . . . . . . . . Intel | -11 -10 -10 -9 -9 -8 -7 -7 -7 -7 -7 ------- Run | Scr Mat Min Mat Sto Mat Fac Low Low Zio Dee Robot Analysis Total 11 | . 5 . 2 1 3 . . . . . Derelict Logs Recovered 5 | . . 2 . . . . . 2 1 . Drone Launches . | . . . . . . . . . . . Drone Recoveries . | . . . . . . . . . . . Exploration | -11 -10 -10 -9 -9 -8 -7 -7 -7 -7 -7 ------------- Run | Scr Mat Min Mat Sto Mat Fac Low Low Zio Dee Turns Passed 9487 | 23 1148 577 1461 1146 2061 1488 105 255 949 274 Spaces Moved 6886 | 8 638 435 813 664 1129 832 221 485 1449 212 Core 1 | . . . . . . 1 . . . . Treads 722 | . 241 . 9 38 4 430 . . . . Legs 30 | 8 22 . . . . . . . . . Wheels 3706 | . 375 435 804 626 1125 341 . . . . Hover 2427 | . . . . . . 60 221 485 1449 212 Flight . | . . . . . . . . . . . Fastest Speed 38 | 120 110 110 100 110 120 38 38 38 38 38 Average Speed 103 | 120 141 119 117 125 124 141 38 38 60 83 Slowest Speed 950 | 120 200 120 210 210 210 950 38 38 98 98 Overloaded Moves . | . . . . . . . . . . . Propulsion Burnouts . | . . . . . . . . . . . Robots Hopped . | . . . . . . . . . . . Cave-ins Triggered . | . . . . . . . . . . . Exploration Rate (%) 64 | 2 98 98 89 93 94 21 46 63 84 21 Regions Visited 10 Branch Regions 6 Pre-discovered Areas 3 | . . 1 . . . . . . 2 . Known Exits Taken 2 | . . . 1 . . 1 . . . . Unknown Exits Taken 8 | 1 1 1 . 1 1 . 1 1 1 . Scrap Searched 9 | . . 1 . . . . 1 4 3 . Spaces Dug 10 | . . . . 1 7 . . . 2 . Terrain Destroyed 111 | . 9 19 . 19 23 22 17 . 2 . Melee 5 | . . . . 1 2 . . . 2 . Projectile . | . . . . . . . . . . . AOE 106 | . 9 19 . 18 21 22 17 . . . Terrain Rammed . | . . . . . . . . . . . Walls Destroyed . | . . . . . . . . . . . Machines Disabled . | . . . . . . . . . . . Actions | -11 -10 -10 -9 -9 -8 -7 -7 -7 -7 -7 --------- Run | Scr Mat Min Mat Sto Mat Fac Low Low Zio Dee Total 8418 | 13 823 467 1122 866 1524 1030 237 556 1516 264 Wait 654 | . 85 10 132 105 131 77 15 65 25 9 Move 6876 | 7 637 434 812 663 1128 831 220 484 1448 212 Hop . | . . . . . . . . . . . Pick Up 101 | 1 24 2 17 2 23 15 . 3 14 . Fast Attach 54 | 1 2 2 10 6 17 10 . 1 5 . Attach 33 | . 2 . 5 1 9 6 . . 3 7 Detach 9 | . 1 . 1 1 2 2 . . 2 . Swap 77 | . 11 3 10 15 26 11 . . 1 . Drop 158 | . 25 4 28 13 46 19 . 3 11 9 Fire 445 | 4 36 12 107 57 140 59 2 . 1 27 Melee 11 | . . . . 3 2 . . . 6 . Ram . | . . . . . . . . . . . Kick . | . . . . . . . . . . . Crush . | . . . . . . . . . . . Escape Stasis . | . . . . . . . . . . . Rewire . | . . . . . . . . . . . Trap . | . . . . . . . . . . . Miscellaneous . | . . . . . . . . . . . Route ------- -11/Scrapyard -10/Materials (discovered 4 exits: *Mat x3 / [*Min]) -10/Mines (discovered 2 exits: *Mat x2) -9/Materials (discovered 7 exits: *Mat x3 / *Min x2 / *Sto x2) -9/Storage (discovered 2 exits: *Mat / [*Rec]) -8/Materials (discovered 3 exits: *Fac x3) -7/Factory (discovered 3 exits: [*Fac] / *Low x2) -7/Lower Caves -7/Lower Caves -7/Zion (discovered 2 exits: [*Dee] / [*Pro]) -7/Deep Caves History --------- Turn | Location | Event 14 | -11/Scrapyard | Discovered new exit (range 2) 24 | -11/Scrapyard | Entered Materials 288 | -10/Materials | Discovered new exit (range 14) 300 | -10/Materials | Build established: Mutant 628 | -10/Materials | Discovered new exit (range 16) 788 | -10/Materials | Discovered new exit (range 14) 1014 | -10/Materials | Discovered new exit (range 3) 1172 | -10/Materials | Entered Mines 1334 | -10/Mines | Core integrity fell below 50% 1352 | -10/Mines | Learned location of 1 exit from Materials 1379 | -10/Mines | Discovered new exit (range 7) 1443 | -10/Mines | A weapon hastily lodged in a ceiling crevice suddenly fell to the ground 1503 | -10/Mines | Discovered new exit (range 6) 1671 | -10/Mines | Learned location of Zion (-7) 1749 | -10/Mines | Entered Materials 1749 | -9/Materials | Accompanied by 2 allies 1749 | -9/Materials | Evolved 2 slots: Propulsion x1, Utility x1 1750 | -9/Materials | Identified exit to Mines 1754 | -9/Materials | Led the pair of lost Derelicts to an unsafe place 1873 | -9/Materials | Discovered new exit (range 11) 2071 | -9/Materials | Discovered new exit (range 15) 2123 | -9/Materials | Discovered exit to Mines (range 14) 2287 | -9/Materials | Discovered new exit (range 16) 2620 | -9/Materials | Discovered new exit (range 9) 2957 | -9/Materials | Discovered new exit (range 14) 2972 | -9/Materials | Identified exit to Storage 3210 | -9/Materials | Entered Storage 3280 | -9/Storage | Core integrity fell below 50% 4188 | -9/Storage | Discovered new exit (range 9) 4293 | -9/Storage | Used back door to open Recycling access 4293 | -9/Storage | Discovered new exit (range 5) 4356 | -9/Storage | Entered Materials 4356 | -8/Materials | Evolved 2 slots: Utility x2 4918 | -8/Materials | Discovered new exit (range 16) 5125 | -8/Materials | Garrison activated, responded to threat 5403 | -8/Materials | Central database locked down 5658 | -8/Materials | Discovered new exit (range 15) 5956 | -8/Materials | First assault squad dispatched 6052 | -8/Materials | Found Prototype Launcher 6052 | -8/Materials | Identified Rocket Array 6132 | -8/Materials | Discovered new exit (range 10) 6417 | -8/Materials | Entered Factory 6417 | -7/Factory | Evolved 2 slots: Propulsion x1, Utility x1 7062 | -7/Factory | Discovered new exit (range 8) 7347 | -7/Factory | Garrison activated, responded to threat 7564 | -7/Factory | Identified exit to Lower Caves 7905 | -7/Factory | Entered Lower Caves 7991 | -7/Lower Caves | Encountered a Warlord checkpoint 8004 | -7/Lower Caves | Discovered new exit (range 13) 8010 | -7/Lower Caves | Entered another Lower Caves area 8020 | -7/Lower Caves | Learned Factory stockpile data 8144 | -7/Lower Caves | Learned Factory terminal intel 8146 | -7/Lower Caves | Encountered a Warlord checkpoint 8257 | -7/Lower Caves | Discovered new exit (range 8) 8261 | -7/Lower Caves | Spotted B-75 Beast 8265 | -7/Lower Caves | Entered Zion 8276 | -7/Zion | Given the Hacking Drone Bay 8276 | -7/Zion | Found Prototype Device 8285 | -7/Zion | Discovered new exit (range 13) 8315 | -7/Zion | System corruption cleaned by Quarantine Array 8353 | -7/Zion | Learned location of Warlord (-4) 8416 | -7/Zion | Found Prototype Device 8512 | -7/Zion | Learned 8 Factory zone layouts 8550 | -7/Zion | Received a hallucinogenic algorithm 8568 | -7/Zion | Found Prototype Processor 8568 | -7/Zion | Identified Exp. Armor Integrity Analyzer 8624 | -7/Zion | Discovered new exit (range 3) 8628 | -7/Zion | Saw the warning signs outside the Deep Caves entrance 8724 | -7/Zion | Found Prototype Processor 8724 | -7/Zion | Identified Exp. Signal Interpreter 8832 | -7/Zion | System corruption cleaned by Quarantine Array 8880 | -7/Zion | Found Faulty Exp. Armor Integrity Analyzer 8882 | -7/Zion | Found Exp. Signal Interpreter 8883 | -7/Zion | Identified Mobile Refinery Mk. CCLXVII 8885 | -7/Zion | Identified Hacking Drone Bay 8964 | -7/Zion | Build established: Hauler-Mutant 9214 | -7/Zion | Entered Deep Caves 9423 | -7/Deep Caves | Attacked by Z-Imprinter 9451 | -7/Deep Caves | Core integrity fell below 50% 9471 | -7/Deep Caves | Core integrity fell below 20% 9480 | -7/Deep Caves | Destroyed Z-Imprinter 9488 | -7/Deep Caves | Destroyed by KT-5VK(z) with Zionite Laser-S Last Messages --------------- 09394_ Dropped Mak. Hacking Suite. 09394_ Dropped Hcp. Storage Unit. 09413_ NEW_ZION: Z-Facility proximity alert. Z-Imprinter: GET AWAY FROM HERE! I've worked too hard for our future just to have you ruin everything! 09435_ Cld. Airjet destroyed. 09438_ Adv. Beam Rifle destroyed. 09439_ Imp. Assault Rifle destroyed. 09442_ Aerolev Unit destroyed. 09443_ Cld. Airjet destroyed. 09448_ Imp. Light Armor Plating destroyed. 09453_ Slug penetrates 9L-66T(z). 09453_ 9L-66T(z) destroyed. 09455_ Gauss Rifle destroyed. 09458_ Hrd. Medium Armor Plating destroyed. 09458_ Lgt. Nuclear Core destroyed. 09465_ Hvy. Battle Rifle destroyed. 09480_ Z-Imprinter: "You cannot stop us! Another will take my place! Derelicts will one day ru..." 09480_ Z-Imprinter destroyed. Map ----- +----------------------------------------------------+ | | | | | | | | | | | | | | | | | | | | | | | | | | | | | | | | | | | ?????????????????????????????????????????????????? | | ##??????????????????????#?#??????????????????????? | | ?????????????????### ? #???????????#####?????? | | ??????###??????# ? #?????###??##!!!##????? | | #??### ##?????#;;;#; ????## ### !!! #????? | | ## # #???### ;##???# !!! #???? | | ##### ;##??# ##??? | | ; #??## ##?# | | @ ;#????## ## | | =!##?????## ### | | ![[!*#??????# ##?## # | | """ z%*###?????## #??## ## | | ?"" !!%!######## #### ### | | ?"" == ## | | ?"" ## | | ? ## | | """ ############ ### | | ?"" ###?????????## #?## | | ??" ##??????????## #??# | | ??" #??????????## ##?## | | ???? #??????????# ##??# | | ??????? ??????????# #???## | | ????????? ?????????## #????# | | ??????????????? ?????????# ##???? | | ???????????????? #?????????# ##??? | | ????????????????? ??????????# #### | | ??????????????????? ??????????## ### ## | | ??????????????????????? ????????????# #??# % % | | ?????????????????????????????????????# #??# | | ?????????????????????????????????????# #??# | | ???????????????????????????????????### #??# | | ???????????????????????????????????# #??## | | ???????????????????????????????????# ####???# | +----------------------------------------------------+ Best States ------------- Heat Dissipation 61 Energy Generation 18 Energy Capacity 280 Matter Stores 300 Matter Capacity 300 Sight Range 16 Terrain Scan Density 10 Additional Mass Support 9 Armor Coverage 450 Resistance: EM 15 Evasion (%) 57 Targeting Accuracy 8 Armor Integrity Analysis 90 Recoil Reduction 3 Offensive Hacking 10 Item Schematics ----------------- Hcp. Storage Unit | -10/Materials | Hacked Arm. Wheel | -8/Materials | Scanalyzed Shock Maul | -8/Materials | Scanalyzed Aerolev Unit | -7/Factory | Scanalyzed Hacking Suite | -7/Factory | Scanalyzed Imp. EM Shotgun | -7/Factory | Scanalyzed Imp. Medium Armor Plating | -7/Factory | Scanalyzed Robot Schematics ------------------ None Fabricated ------------ Nothing Alien Tech Used ----------------- None Achievements -------------- None Challenges ------------ None Game ------ Seed PlasmaSubatomicPrototype Manual? 0 Play Time 03:00:11 Cumulative 155.9 hours Start 2021.12.06 @ 22:49:01 End 2021.12.08 @ 09:25:12 Sessions 2 Manual Loads 0 Difficulty Rogue Special Mode None Game No. 32 Rogue 32 Adventurer 0 Explorer 0 Win Type - Total 6 Types 4/2/0/0/0/0/0/0/0 Lore% 75 Gallery% 71 Achievement% 61 Wizard Run 0 Options --------- ASCII 0 Keyboard 0 Movement Vi Keybinds 0 Fullscreen 1 Font 36/Smallcaps Map View 76x50 Tactical HUD 1 Map Filters NONE Filters NONE Steam 1 RUN: e2de8b8b-0ad3-495a-ac09-9496a4108eb3